lending/lending_fUSD_20241012
["ID","MTS","AMOUNT","RATE_DAILY","PERIOD"]
[340161076,1728717001697,250.0,0.00010194,2]
[340161086,1728717032144,-189.4,0.0001024,2]
[340161087,1728717032154,-172.61,0.00010358,2]
[340161088,1728717032163,-2584.56874193,0.00010453,2]
[340161089,1728717032261,-1060.21028219,0.00010453,2]
[340161090,1728717032271,-497.69,0.00010504,2]
[340161091,1728717032281,-199.74,0.00010762,2]
[340161092,1728717032291,-150.0,0.00010899,2]
[340161093,1728717032301,-1000.0,0.000109,2]
[340161094,1728717032311,-1033.5844,0.000109,2]
[340161095,1728717032320,-1113.1381,0.000109,2]
[340161096,1728717032330,-156.89495249,0.000109,2]
[340161097,1728717032339,-3419.27759112,0.000109,2]
[340161098,1728717032350,-961.86230888,0.000109,2]
[340161099,1728717032359,-423.99,0.000109,2]
[340161100,1728717032369,-755.56,0.000109,2]
[340161101,1728717032378,-429.44,0.000109,2]
[340161102,1728717032387,-198.15,0.000109,2]
[340161103,1728717032396,-150.0,0.000109,2]
[340161104,1728717032405,-150.0,0.000109,2]
[340161105,1728717032414,-534.81,0.000109,2]
[340161106,1728717032424,-359.09,0.000109,2]
[340161107,1728717032433,-150.0,0.000109,2]
[340161108,1728717032442,-150.0,0.000109,2]
[340161109,1728717032453,-755.56,0.000109,2]
[340161110,1728717032462,-844.07,0.000109,2]
[340161111,1728717032472,-755.56,0.000109,2]
[340161112,1728717032481,-359.09,0.000109,2]
[340161113,1728717032490,-150.0,0.000109,2]
[340161114,1728717032499,-755.56,0.000109,2]
[340161115,1728717032509,-351.44829902,0.000109,2]
[340161116,1728717032521,-183.36170098,0.000109,2]
[340161117,1728717032531,-423.99,0.000109,2]
[340161118,1728717032540,-429.44,0.000109,2]
[340161119,1728717032549,-150.0,0.000109,2]
[340161120,1728717032559,-755.56,0.000109,2]
[340161121,1728717032569,-755.56,0.000109,2]
[340161122,1728717032578,-847.98,0.000109,2]
[340161123,1728717032587,-288.29015167,0.000109,2]
[340161125,1728717032599,-135.69984833,0.000109,2]
[340161126,1728717032608,-204.58180841,0.000109,2]
[340161127,1728717032619,-550.97819159,0.000109,2]
[340161128,1728717032629,-264.88,0.000109,2]
[340161129,1728717032638,-422.91,0.000109,2]
[340161130,1728717032652,-4706.80614199,0.000109,2]
[340161131,1728717032664,-2793.19385801,0.000109,2]
[340161132,1728717032673,-755.24,0.000109,2]
[340161133,1728717032682,-423.81,0.000109,2]
[340161134,1728717032692,-740.22675811,0.000109,2]
[340161135,1728717032701,-812.0,0.00010905,2]
[340161137,1728717032710,-150.8,0.00010922,2]
[340161139,1728717032719,-560.0,0.00010922,2]
[340161140,1728717032728,-935.0,0.00010922,2]
[340161141,1728717032737,-3356.0,0.00010922,2]
[340161142,1728717032746,-555.0,0.00010922,2]
[340161143,1728717032755,-1908.0,0.00010922,2]
[340161144,1728717032764,-1910.0,0.00010922,2]
[340161145,1728717032773,-808.0,0.00010922,2]
[340161146,1728717032783,-299.99,0.00010922,2]
[340161147,1728717032792,-1150.0,0.00010922,2]
[340161148,1728717032802,-13526.0,0.00010922,2]
[340161149,1728717032811,-150.0,0.00010922,2]
[340161150,1728717032821,-5882.0,0.00010922,2]
[340161151,1728717032831,-1083.0,0.00010922,2]
[340161152,1728717032839,-156.84,0.00010959,2]
[340161153,1728717032849,-628.15,0.00010959,2]
[340161154,1728717032858,-155.57,0.00010959,2]
[340161155,1728717032867,-204.11,0.00010959,2]
[340161156,1728717032877,-21652.39,0.00010959,2]
[340161157,1728717032886,-160.32895181,0.00010973,2]
[340161158,1728717032895,-164.29763304,0.00010973,2]
[340161159,1728717032905,-187.568,0.00010973,2]
[340161160,1728717032914,-3451.83190529,0.00010995,2]
[340161161,1728717032925,-14800.03927681,0.00010995,2]
[340161162,1728717032935,-1221.3743994,0.00010995,2]
[340161163,1728717032944,-54146.33435853,0.00011,2]
[340161164,1728717032955,-263.99149982,0.00011,2]
[340161165,1728717032970,-1571.99124699,0.00011,2]
[340161166,1728717032980,-3055.3,0.00011,2]
[340161167,1728717033002,-655.60712406,0.00011,2]
[340161172,1728717038323,-2134.90469622,0.00011,2]
[340161173,1728717038335,-313.999999,0.00011,2]
[340161174,1728717038359,-569.5689955,0.00011,2]
[340161175,1728717038627,-4840.2,0.00011,2]
[340161177,1728717038639,-970.94652598,0.00011,2]
[340161179,1728717040183,-3457.31303734,0.00011,2]
[340161180,1728717040322,-1544.21894649,0.00011,2]
[340161181,1728717040333,-1785.34149698,0.00011,2]
[340161194,1728717043555,-264.1048001,0.00011,2]
[340161195,1728717043582,-502.088,0.00011,2]
[340161198,1728717046441,-6238.1,0.00011,2]
[340161199,1728717046456,-20142.19060448,0.00011,2]
[340161212,1728717247856,512.59,8.603e-05,2]
[340161213,1728717421560,10301.74,0.00010228,2]
[340161214,1728717559279,204.42,0.00010218,2]
[340161215,1728717612972,250.0,0.00010198,2]
[340161216,1728717715166,1000.0,0.00010155,2]
[340161217,1728717766316,511.85,8.311e-05,2]
[340161218,1728717796765,500.0,8.245e-05,2]
[340161219,1728717859794,150.58,0.00010223,2]
[340161220,1728717882426,2000.0,0.00021,90]
[340161221,1728717919846,2405.49736482,9e-05,2]
[340161222,1728717929573,261.49053264,0.000101,2]
[340161232,1728717956181,373.83,0.00010223,2]
[340161233,1728717983880,155.02380638,9.888e-05,2]
[340161234,1728718006619,550.0,0.0001,2]
[340161251,1728718232519,-172.61,0.00010237,2]
[340161252,1728718232529,-166.07,0.00010248,2]
[340161253,1728718232539,-511.85,0.00010575,2]
[340161254,1728718232548,-804.57498132,0.000107,2]
[340161255,1728718232557,-1421.19562929,0.0001078,2]
[340161256,1728718232566,-462.27487627,0.000108,2]
[340161257,1728718232641,-1445.37542373,0.000108,2]
[340161258,1728718232652,-300.0,0.00010899,2]
[340161259,1728718232661,-312.85,0.000109,2]
[340161260,1728718232670,-667.09011716,0.000109,2]
[340161261,1728718232681,-332.90988284,0.000109,2]
[340161262,1728718232691,-143.19005978,0.000109,2]
[340161301,1728718233352,200.0,0.00010203,2]
[340161306,1728718238410,-349.87799986,0.000109,2]
[340161309,1728718238518,-2186.34241357,0.000109,2]
[340161310,1728718238528,-155.72,0.00010959,2]
[340161311,1728718238537,-155.57,0.00010959,2]
[340161312,1728718238548,-156.88,0.00010959,2]
[340161313,1728718238558,-502.52,0.00010959,2]
[340161314,1728718238567,-150.03184495,0.00010973,2]
[340161315,1728718238577,-153.0,0.00010975,2]
[340161316,1728718238587,-181.97,0.00010994,2]
[340161317,1728718238597,-150.0,0.00010994,2]
[340161318,1728718238607,-884.98691018,0.00010995,2]
[340161319,1728718238620,-1849.01762945,0.00010995,2]
[340161320,1728718238646,-6086.3676762,0.00010995,2]
[340161321,1728718238751,-16101.58700077,0.00010995,2]
[340161322,1728718238761,-3035.8747134,0.00010995,2]
[340161323,1728718238771,-1189.1732656,0.00010995,2]
[340161324,1728718238782,-545.17672361,0.00010995,2]
[340161325,1728718238791,-888.64693364,0.00011,2]
[340161326,1728718238803,-8621.8751648,0.00011,2]
[340161327,1728718238814,-13221.38836665,0.00011,2]
[340161328,1728718238825,-3407.34427719,0.00011,2]
[340161329,1728718238837,-300.0,0.00011,2]
[340161330,1728718238848,-1275.15327242,0.00011,2]
[340161341,1728718240364,-5966.59176036,0.00011,2]
[340161342,1728718240445,-238344.04271306,0.00011,2]
[340161343,1728718240551,-33250.27322222,0.00011,2]
[340161344,1728718240563,-3386.00621904,0.00011,2]
[340161345,1728718240577,-1619.81177164,0.00011,2]
[340161346,1728718240596,-90.38289585,0.00011,2]
[340161347,1728718240607,-627.55,0.00011,2]
[340161366,1728718243382,-374.72962927,0.00011,2]
[340161370,1728718243408,-793.6575,0.00011,2]
[340161381,1728718243515,-1493.4219092,0.00011,2]
[340161382,1728718243526,-1280.14,0.00011,2]
[340161383,1728718243538,-278.59999992,0.00011,2]
[340161384,1728718243549,-414.48108,0.00011,2]
[340161385,1728718243560,-655.492865,0.00011,2]
[340161386,1728718243571,-14168.25025493,0.00011,2]
[340161387,1728718243583,-2216.01089178,0.00011,2]
[340161388,1728718243604,-3563.9999998,0.00011,2]
[340161389,1728718243617,-1897.54753777,0.00011,2]
[340161390,1728718243627,-12234.3362,0.00011,2]
[340161391,1728718243638,-977.39069926,0.00011,2]
[340161392,1728718243650,-927.77,0.00011,2]
[340161393,1728718243663,-24476.1109537,0.00011,2]
[340161405,1728718246461,-404.48230813,0.00011,2]
[340161406,1728718246473,-3569.46687015,0.00011,2]
[340161407,1728718246484,-26046.89777595,0.00011,2]
[340161408,1728718246494,-1455.39500522,0.00011,2]
[340161409,1728718246574,-6241.5,0.00011,2]
[340161410,1728718246585,-1861.594756,0.00011,2]
[340161411,1728718246596,-2482.25829577,0.00011,2]
[340161412,1728718246607,-32116.86348358,0.00011,2]
[340161456,1728718299412,525.63,8.305e-05,2]
[340161457,1728718316193,151.09,0.00010128,2]
[340161459,1728718397816,500.0,0.00010047,2]
[340161460,1728718439536,-722.16573347,0.00010453,2]
[340161461,1728718439557,-1037.52019319,0.00010469,2]
[340161462,1728718439579,-525.63,0.00010569,2]
[340161463,1728718439601,-250.0,0.00010817,2]
[340161464,1728718439625,-300.0,0.00010899,2]
[340161465,1728718439645,-150.0,0.00010899,2]
[340161466,1728718439666,-2500.0,0.000109,2]
[340161467,1728718439687,-666.20408229,0.000109,2]
[340161468,1728718439709,-969.47999105,0.000109,2]
[340161469,1728718508092,155.4029259,0.00021522,120]
[340161470,1728718520578,20694.1,0.00010106,2]
[340161471,1728718610247,161.93,0.00010148,2]
[340161472,1728718621134,286.99,0.00010188,2]
[340161473,1728718767374,840.0,0.00010091,2]
[340161474,1728718777856,250.0,0.00010091,2]
[340161476,1728718921025,535.37,8.219e-05,2]
[340161477,1728718986529,170.28,0.00010087,2]
[340161478,1728719114895,250.0,0.00010226,2]
[340161484,1728719184976,286.99,0.0001006,2]
[340161485,1728719191138,1032.22622694,0.000125,3]
[340161488,1728719280045,328.0,0.00010047,2]
[340161489,1728719301233,163.53,0.00010029,2]
[340161513,1728719431515,-535.37,0.00010481,2]
[340161514,1728719431525,-261.7196,0.00010895,2]
[340161515,1728719431535,-312.18750946,0.00010899,2]
[340161516,1728719431546,-687.81249054,0.00010899,2]
[340161517,1728719431555,-2000.16512062,0.00010899,2]
[340161518,1728719431565,-150.0,0.00010899,2]
[340161519,1728719431574,-300.0,0.00010899,2]
[340161520,1728719431583,-43905.79419347,0.000109,2]
[340161521,1728719431595,-475.66647092,0.000109,2]
[340161522,1728719431606,-371.6925449,0.000109,2]
[340161523,1728719431623,-8820.45689966,0.000109,2]
[340161524,1728719431633,-3318.2356,0.000109,2]
[340161525,1728719431643,-1000.0,0.000109,2]
[340161526,1728719431652,-651.90231213,0.000109,2]
[340161527,1728719431679,-393.9067626,0.000109,2]
[340161528,1728719431690,-176.76892527,0.000109,2]
[340161529,1728719431700,-167.49071049,0.000109,2]
[340161530,1728719431709,-362.81768089,0.000109,2]
[340161531,1728719431720,-629.99914214,0.000109,2]
[340161532,1728719431736,-1501.98078684,0.000109,2]
[340161533,1728719431746,-427.01921316,0.000109,2]
[340161534,1728719431758,-2083.05131199,0.000109,2]
[340161535,1728719431768,-322.67866673,0.000109,2]
[340161536,1728719431778,-2362.39475188,0.000109,2]
[340161579,1728719437761,-0.13684202,0.000109,2]
[340161580,1728719437783,-147.53893116,0.000109,2]
[340161581,1728719437793,-2510.07052506,0.00010901,2]
[340161582,1728719437803,-2510.07052506,0.00010901,2]
[340161583,1728719437815,-602.68,0.00010901,2]
[340161584,1728719437825,-2510.07052506,0.00010901,2]
[340161585,1728719437834,-3532.59,0.00010901,2]
[340161586,1728719437844,-1617.12,0.00010901,2]
[340161587,1728719437853,-2510.07052506,0.00010902,2]
[340161588,1728719437863,-2510.07052506,0.00010902,2]
[340161589,1728719437872,-150.99,0.00010902,2]
[340161590,1728719437881,-2510.07052506,0.00010902,2]
[340161591,1728719437891,-2510.07052506,0.00010903,2]
[340161592,1728719437901,-2510.07052506,0.00010903,2]
[340161593,1728719437910,-238.779,0.00010942,2]
[340161594,1728719437920,-162.204,0.00010942,2]
[340161595,1728719437930,-157.03,0.00010959,2]
[340161596,1728719437940,-156.84,0.00010959,2]
[340161597,1728719437949,-250.0,0.00010959,2]
[340161598,1728719437959,-495.35,0.00010959,2]
[340161599,1728719437969,-401.17784518,0.00010973,2]
[340161600,1728719437978,-152.71925709,0.00010973,2]
[340161601,1728719437988,-500.0,0.00010973,2]
[340161602,1728719437997,-894.2236077,0.00010995,2]
[340161603,1728719438006,-18740.586359,0.00010995,2]
[340161604,1728719438015,-1477.2157553,0.00010995,2]
[340161605,1728719438025,-103184.89353025,0.00011,2]
[340161606,1728719438034,-378887.99779999,0.00011,2]
[340161607,1728719438046,-2130.40354718,0.00011,2]
[340161608,1728719438057,-4412.57288152,0.00011,2]
[340161609,1728719438068,-2700.19176531,0.00011,2]
[340161610,1728719438079,-5305.36144738,0.00011,2]
[340161611,1728719438090,-1404.2,0.00011,2]
[340161624,1728719439670,-193.9,0.00010959,2]
[340161625,1728719439680,-496.262,0.00011,2]
[340161626,1728719439775,-328111.35772813,0.00011,2]
[340161627,1728719439884,-467.23889015,0.00011,2]
[340161631,1728719442595,-111612.19511276,0.00011,2]
[340161632,1728719445573,-300.0,0.00011,2]
[340161633,1728719445584,-26769.12260577,0.00011,2]
[340161634,1728719445596,-348.59220535,0.00011,2]
[340161635,1728719445606,-260.6034,0.00011,2]
[340161636,1728719445617,-538.32730006,0.00011,2]
[340161637,1728719445679,-71453.10222775,0.00011,2]
[340161638,1728719445787,-361.97000016,0.00011,2]
[340161641,1728719464796,546.91,9.058e-05,2]
[340161642,1728719597603,500.0,8.986e-05,2]
[340161643,1728719775958,737.6,0.00010216,2]
[340161644,1728719810074,550.0,0.0001,2]
[340161645,1728719854438,182.05,0.00010213,2]
[340161646,1728720042425,550.34,8.219e-05,2]
[340161647,1728720044013,250.0,9.994e-05,2]
[340161648,1728720120956,19797.17,9.985e-05,2]
[340161660,1728720360179,161.93,0.00010133,2]
[340161661,1728720416416,1000.0,0.00010116,2]
[340161662,1728720421281,468.46,0.00010137,2]
[340161665,1728720440871,250.0,0.00010142,2]
[340161672,1728720559634,553.48,8.219e-05,2]
[340161673,1728720571894,250.0,0.0001011,2]
[340161684,1728720631682,-1292.6215,0.00010377,2]
[340161685,1728720631692,-553.48,0.00010483,2]
[340161686,1728720631702,-415.6485,0.0001078,2]
[340161687,1728720631713,-525.7528204,0.0001078,2]
[340161688,1728720631722,-3758.0,0.0001089,2]
[340161689,1728720631731,-1569.27726436,0.00010894,2]
[340161690,1728720631748,-513.53853564,0.00010894,2]
[340161691,1728720631757,-150.0,0.00010898,2]
[340161692,1728720631766,-52.65021102,0.00010899,2]
[340161693,1728720631777,-1429.9999999,0.00010899,2]
[340161694,1728720631792,-6955.07225138,0.00010899,2]
[340161695,1728720631803,-253.32880722,0.00010899,2]
[340161696,1728720631812,-8691.05126945,0.00010899,2]
[340161697,1728720631821,-4750.47809534,0.00010899,2]
[340161698,1728720631832,-3940.57317411,0.00010899,2]
[340161699,1728720631841,-6319.61501603,0.00010899,2]
[340161700,1728720631852,-1283.39985363,0.00010899,2]
[340161701,1728720631863,-1088.03639979,0.00010899,2]
[340161702,1728720631872,-3653.24272982,0.00010899,2]
[340161703,1728720631883,-2757.26770794,0.00010899,2]
[340161704,1728720631905,-1505.24235457,0.00010899,2]
[340161708,1728720638100,-559.12249875,0.00010899,2]
[340161709,1728720638177,-216.17597837,0.00010899,2]
[340161710,1728720638187,-265.83462163,0.00010899,2]
[340161711,1728720638231,-6407.8,0.00010899,2]
[340161712,1728720638242,-2017.41664782,0.00010899,2]
[340161713,1728720638251,-5337.36297884,0.00010899,2]
[340161733,1728720639113,-3353.68829061,0.00010899,2]
[340161734,1728720639123,-8691.05126945,0.00010899,2]
[340161735,1728720639132,-8691.05126945,0.00010899,2]
[340161736,1728720639141,-167.49071049,0.000109,2]
[340161737,1728720639150,-8691.05126945,0.000109,2]
[340161738,1728720639159,-187.60624686,0.000109,2]
[340161739,1728720639168,-1576.0,0.000109,2]
[340161740,1728720639177,-200.67355549,0.000109,2]
[340161741,1728720639186,-490.65396624,0.000109,2]
[340161742,1728720639196,-3356.0,0.00010902,2]
[340161743,1728720639206,-1908.0,0.00010902,2]
[340161744,1728720639215,-555.0,0.00010902,2]
[340161745,1728720639224,-808.0,0.00010902,2]
[340161746,1728720639233,-1910.0,0.00010902,2]
[340161747,1728720639242,-5882.0,0.00010917,2]
[340161748,1728720639251,-13526.0,0.00010917,2]
[340161749,1728720639260,-1150.0,0.00010917,2]
[340161750,1728720639269,-150.0,0.00010917,2]
[340161751,1728720639279,-1083.0,0.00010917,2]
[340161752,1728720639288,-499.99,0.00010919,2]
[340161753,1728720639297,-246.274,0.0001093,2]
[340161754,1728720639307,-961.64781233,0.00010945,2]
[340161755,1728720639316,-150.98,0.00010959,2]
[340161756,1728720639326,-155.85,0.00010959,2]
[340161757,1728720639335,-396.28,0.00010959,2]
[340161758,1728720639345,-250.0,0.00010959,2]
[340161759,1728720639354,-1472.92,0.00010959,2]
[340161760,1728720639363,-501.7263737,0.00010973,2]
[340161761,1728720639372,-163.8719381,0.00010973,2]
[340161762,1728720639383,-322.03537371,0.00010973,2]
[340161763,1728720639396,-227.48689619,0.00010973,2]
[340161764,1728720639405,-500.0,0.00010973,2]
[340161765,1728720639415,-320.78403689,0.00010973,2]
[340161766,1728720639424,-561.83581059,0.0001099,2]
[340161767,1728720639433,-561.83581059,0.0001099,2]
[340161768,1728720639442,-561.83581059,0.0001099,2]
[340161769,1728720639451,-500.0,0.00010993,2]
[340161770,1728720639460,-500.0,0.00010993,2]
[340161771,1728720639469,-500.0,0.00010993,2]
[340161772,1728720639478,-500.0,0.00010993,2]
[340161773,1728720639487,-500.0,0.00010993,2]
[340161774,1728720639496,-649.42887814,0.00010993,2]
[340161775,1728720639506,-209017.08732967,0.00010994,2]
[340161800,1728720639869,-248094.11549958,0.00010994,2]
[340161802,1728720639878,-710.5407782,0.00010995,2]
[340161804,1728720639888,-8526.0859914,0.00010995,2]
[340161806,1728720639897,-384.2328358,0.00010995,2]
[340161807,1728720639907,-159.61986477,0.00010999,2]
[340161808,1728720639915,-546.0,0.00011,2]
[340161809,1728720639925,-103741.17782044,0.00011,2]
[340161810,1728720639939,-3402916.45506733,0.00011,2]
[340161811,1728720639949,-1005.01498488,0.00011,2]
[340161812,1728720639958,-298.0,0.00011,2]
[340161813,1728720639967,-4103679.91158168,0.00011,2]
[340161814,1728720639986,-837496.13488769,0.00011,2]
[340161815,1728720639996,-80064.02774154,0.00011,2]
[340161826,1728720643019,-119409.3,0.00011,2]
[340161829,1728720643032,-372.48745849,0.00011,2]
[340161833,1728720645897,-282.8115,0.00011,2]
[340161834,1728720645952,-265.12497016,0.00011,2]
[340161836,1728720790249,11514.0,0.000125,5]
[340161841,1728721050836,160.89474529,0.0001247,10]
[340161846,1728721098564,498.13,8.444e-05,2]
[340161847,1728721218960,250.0,0.00010164,2]
[340161848,1728721269059,-23900.0,0.00010242,2]
[340161849,1728721269080,-279.97,0.00010285,2]
[340161850,1728721269100,-168.23,0.00010288,2]
[340161851,1728721269121,-328.92,0.00010358,2]
[340161852,1728721269140,-250.0,0.00010358,2]
[340161853,1728721269161,-200.0,0.00010466,2]
[340161854,1728721269183,-171.0,0.00010476,2]
[340161855,1728721269204,-163.52,0.00010677,2]
[340161856,1728721269226,-498.13,0.00010708,2]
[340161857,1728721269250,-1023.37085804,0.0001078,2]
[340161858,1728721269272,-1816.4272,0.00010894,2]
[340161859,1728721269295,-150.0,0.00010899,2]
[340161860,1728721269319,-11865.09,0.000109,2]
[340161861,1728721269340,-952.6859,0.000109,2]
[340161862,1728721269361,-3855.0634,0.000109,2]
[340161863,1728721269383,-165.76218273,0.000109,2]
[340161864,1728721269404,-423.99,0.000109,2]
[340161865,1728721269426,-429.44,0.000109,2]
[340161866,1728721269448,-755.56,0.000109,2]
[340161867,1728721269468,-150.0,0.000109,2]
[340161868,1728721269490,-161.33933335,0.000109,2]
[340161869,1728721269510,-500.0,0.00010912,2]
[340161870,1728721269531,-534.81,0.00010959,2]
[340161871,1728721269552,-156.75,0.00010959,2]
[340161872,1728721269574,-150.88,0.00010959,2]
[340161873,1728721269595,-250.0,0.00010959,2]
[340161874,1728721269615,-247.17,0.00010959,2]
[340161875,1728721269636,-205.98,0.00010959,2]
[340161876,1728721269657,-157.03,0.00010959,2]
[340161877,1728721269678,-171.65,0.00010959,2]
[340161878,1728721269699,-858.26,0.00010959,2]
[340161879,1728721269720,-500.0,0.00010973,2]
[340161880,1728721269741,-197.019,0.00010973,2]
[340161881,1728721269762,-13199.1710007,0.00010995,2]
[340161882,1728721269783,-1936.7960912,0.00010995,2]
[340161883,1728721269803,-365.5596241,0.00010995,2]
[340161884,1728721269825,-500.0,0.00010999,2]
[340161885,1728721269847,-500.0,0.00010999,2]
[340161886,1728721269868,-342.90605624,0.00010999,2]
[340161887,1728721269892,-81317.51935364,0.00011,2]
[340161888,1728721315639,504.41758731,8.664e-05,2]
[340161889,1728721395989,500.0,8.595e-05,2]
[340161890,1728721613646,550.0,0.0001,2]
[340161895,1728721689084,517.07,8.488e-05,2]
[340161971,1728721831895,-164.46,0.00010358,2]
[340161973,1728721831906,-182.05,0.00010403,2]
[340161975,1728721831915,-517.07,0.00010752,2]
[340161977,1728721831925,-1056.20718951,0.0001078,2]
[340161979,1728721831934,-45.7758864,0.0001078,2]
[340161981,1728721831947,-1010.4896431,0.0001078,2]
[340161983,1728721831958,-150.0,0.00010899,2]
[340161985,1728721831967,-423.99,0.000109,2]
[340161987,1728721831976,-271.57,0.000109,2]
[340161989,1728721831986,-6843.28329211,0.000109,2]
[340161991,1728721831997,-722.16573347,0.000109,2]
[340161994,1728721832014,-3416.88,0.000109,2]
[340161996,1728721832027,-397.7418011,0.000109,2]
[340161998,1728721832038,-1029.07753147,0.000109,2]
[340162001,1728721832049,-1752.99828896,0.000109,2]
[340162003,1728721832072,-3626.07651456,0.000109,2]
[340162004,1728721832091,-320.66312088,0.000109,2]
[340162005,1728721832137,-1187.83591745,0.000109,2]
[340162007,1728721832146,-840.0,0.00010915,2]
[340162009,1728721832156,-502.08720999,0.00010973,2]
[340162011,1728721832165,-355.72,0.00010979,2]
[340162012,1728721832174,-6085.54110535,0.0001099,2]
[340162013,1728721832185,-4841.72908799,0.0001099,2]
[340162014,1728721832196,-31893.57471598,0.0001099,2]
[340162016,1728721832207,-5920.74871794,0.0001099,2]
[340162017,1728721832216,-2155.4930419,0.00010995,2]
[340162018,1728721832225,-479.54843407,0.00010995,2]
[340162026,1728721838167,-686.67518924,0.00010995,2]
[340162027,1728721838178,-1897.42851689,0.00010995,2]
[340162028,1728721838188,-1070.0079582,0.00010995,2]
[340162029,1728721838198,-501.5871387,0.00010995,2]
[340162030,1728721838207,-544.0,0.00011,2]
[340162031,1728721838216,-9378.223162,0.00011,2]
[340162032,1728721838227,-467.6403731,0.00011,2]
[340162036,1728721839876,-6281.9,0.00011,2]
[340162037,1728721840209,-975.016,0.00011,2]
[340162038,1728721840220,-291.16992497,0.00011,2]
[340162349,1728721843436,-414.99999986,0.00011,2]
[340162351,1728721843447,-1611.84417158,0.00011,2]
[340162354,1728721843462,-26017.31070988,0.00011,2]
[340162365,1728721846513,-39.10525471,0.00011,2]
[340162368,1728721901639,11514.0,0.000106,5]
[340162399,1728722293897,525.48,8.357e-05,2]
[340162400,1728722327615,250.0,0.00010216,2]
[340162401,1728722390762,19278.65,0.00010183,2]
[340162402,1728722491605,532.44,0.00010165,2]
[340162403,1728722582955,501.33577216,0.0002,120]
[340162404,1728722598484,500.0,0.00010084,2]
[340162406,1728722781383,250.0,0.0001022,2]
[340162496,1728722959471,530.44,8.368e-05,2]
[340162503,1728722989081,888.75166088,0.0001015,2]
[340162507,1728723032021,-4328.91690403,0.00010247,2]
[340162508,1728723032079,-290.35309597,0.00010247,2]
[340162509,1728723032088,-171.0,0.0001025,2]
[340162510,1728723032099,-250.0,0.00010286,2]
[340162511,1728723032108,-106.79880809,0.00010293,2]
[340162512,1728723032120,-745.31368766,0.00010293,2]
[340162513,1728723032132,-147.88750425,0.00010293,2]
[340162514,1728723032142,-164.46,0.0001031,2]
[340162515,1728723032151,-530.44,0.00010632,2]
[340162516,1728723032161,-1161.10475323,0.0001078,2]
[340162517,1728723032171,-300.0,0.00010899,2]
[340162518,1728723032181,-1046.51124927,0.000109,2]
[340162519,1728723032193,-6379.71782852,0.000109,2]
[340162520,1728723032209,-7103.01487636,0.000109,2]
[340162521,1728723032221,-1470.15534585,0.000109,2]
[340162522,1728723032230,-484.01800005,0.000109,2]
[340162523,1728723032240,-165.76218271,0.000109,2]
[340162524,1728723032250,-150.0,0.00010932,2]
[340162525,1728723032260,-278.23,0.00010959,2]
[340162526,1728723032269,-315.54,0.00010959,2]
[340162527,1728723032279,-205.814,0.00010959,2]
[340162528,1728723032289,-150.0,0.00010994,2]
[340162529,1728723032298,-4579.85778426,0.00010995,2]
[340162530,1728723032310,-266.95294903,0.00010995,2]
[340162531,1728723032321,-415.09721781,0.00010995,2]
[340162532,1728723032332,-308.807424,0.00010995,2]
[340162533,1728723032343,-818.95666546,0.00010995,2]
[340162534,1728723032355,-3338.10102726,0.00010995,2]
[340162535,1728723032367,-269.0000005,0.00010995,2]
[340162536,1728723032378,-1796.69092453,0.00010995,2]
[340162537,1728723032388,-1653.46659865,0.00010995,2]
[340162538,1728723032407,-496.3329089,0.00010995,2]
[340162561,1728723038144,-18641.79028834,0.00010995,2]
[340162562,1728723038154,-1960.480587,0.00010995,2]